bitfinex/quotes_SOLUSD_20251117
["timestamp","ask_amount","ask_price","bid_price","bid_amount"]
[1763365930780,5.45420021,141.94,141.91,3.5087455]
[1763365930983,104.3,141.93,141.91,3.5087455]
[1763365931191,105.0,141.93,141.91,2.7887455]
[1763365932004,104.3,141.93,141.91,2.7887455]
[1763365932508,104.3,141.93,141.91,3.5087455]
[1763365932688,105.0,141.93,141.9,0.72]
[1763365932890,0.7,141.92,141.9,2.7887455]
[1763365933087,105.0,141.93,141.9,2.7887455]
[1763365933605,105.0,141.93,141.87,22.6512]
[1763365933606,0.7,141.92,141.89,2.7887455]
[1763365934111,0.7,141.92,141.89,3.5087455]
[1763365934308,0.7,141.92,141.89,2.7887455]
[1763365934497,3.4887455,141.92,141.87,0.72]
[1763365934805,104.3,141.91,141.88,3.5087455]
[1763365935281,105.0,141.91,141.88,3.5087455]
[1763365936277,104.3,141.91,141.87,2.7887455]
[1763365936482,0.7,141.9,141.86,2.7887455]
[1763365936781,0.7,141.9,141.85,2.7887455]
[1763365936782,3.4887455,141.9,141.85,2.7887455]
[1763365936989,2.7887455,141.89,141.85,2.7887455]
[1763365937183,0.69,141.88,141.85,2.7887455]
[1763365937386,0.69,141.88,141.84,2.7887455]
[1763365937802,104.3,141.91,141.87,2.7887455]
[1763365938109,0.69,141.9,141.87,2.7887455]
[1763365939106,0.69,141.9,141.86,2.7887455]
[1763365939298,0.69,141.9,141.82,22.6512]
[1763365939498,104.3,141.89,141.85,2.7887455]
[1763365940033,0.69,141.88,141.85,2.7887455]
[1763365940508,0.69,141.88,141.86,2.7887455]
[1763365941710,0.69,141.88,141.85,0.7]
[1763365941907,0.69,141.88,141.85,3.4887455]
[1763365942642,0.69,141.88,141.86,2.7887455]
[1763365942797,104.3,141.87,141.86,2.7887455]
[1763365943127,0.69,141.88,141.85,2.7887455]
[1763365943303,0.69,141.87,141.84,2.7887455]
[1763365943697,0.69,141.87,141.84,3.4887455]
[1763365943898,0.69,141.87,141.81,22.6512]
[1763365944097,104.3,141.86,141.84,2.7887455]
[1763365944322,104.3,141.85,141.84,2.7887455]
[1763365944506,104.3,141.85,141.84,3.4887455]
[1763365945220,104.3,141.85,141.84,2.7887455]
[1763365945724,104.3,141.85,141.84,3.4887455]
[1763365949218,104.3,141.85,141.84,0.7]
[1763365949408,104.3,141.85,141.84,2.7887455]
[1763365949614,104.3,141.85,141.84,3.4887455]
[1763365955142,104.3,141.85,141.83,0.66]
[1763365955349,104.3,141.85,141.83,2.7887455]
[1763365955350,104.99,141.85,141.83,2.7887455]
[1763365955730,104.99,141.85,141.84,2.7887455]
[1763365956229,104.99,141.85,141.8,0.66]
[1763365956437,104.99,141.84,141.81,2.7887455]
[1763365957245,0.69,141.83,141.81,2.7887455]
[1763365957821,104.99,141.84,141.82,2.7887455]
[1763365958022,0.69,141.83,141.82,2.7887455]
[1763365958641,0.69,141.83,141.81,2.7887455]
[1763365959345,0.69,141.83,141.82,2.7887455]
[1763365959647,2.7887455,141.86,141.82,2.7887455]
[1763365959648,0.69,141.85,141.82,2.7887455]
[1763365959831,0.69,141.85,141.83,2.7887455]
[1763365960031,0.69,141.85,141.8,0.66]
[1763365960232,0.69,141.85,141.82,2.7887455]
[1763365960739,0.69,141.85,141.83,2.7887455]
[1763365960949,0.69,141.85,141.82,2.7887455]
[1763365961135,0.69,141.85,141.8,0.66]
[1763365961333,0.69,141.85,141.81,2.7887455]
[1763365961655,0.69,141.85,141.83,2.7887455]
[1763365964257,0.69,141.85,141.81,0.66]
[1763365964461,0.69,141.85,141.83,2.7887455]
[1763365964635,0.69,141.85,141.81,0.66]
[1763365964962,0.69,141.85,141.83,2.7887455]
[1763365965960,0.69,141.85,141.82,2.7887455]
[1763365966857,0.69,141.85,141.82,1.78614177]
[1763365967031,0.69,141.85,141.81,0.66]
[1763365967231,1.78614177,141.83,141.79,0.1]
[1763365967754,104.99,141.82,141.79,0.1]
[1763365968051,104.3,141.82,141.8,1.78614177]
[1763365968228,104.99,141.82,141.8,1.78614177]
[1763365969843,104.3,141.82,141.81,1.78614177]
[1763365970554,104.99,141.82,141.81,1.78614177]
[1763365971356,104.99,141.82,141.79,0.1]
[1763365971564,0.69,141.81,141.79,0.1]
[1763365971743,104.3,141.8,141.79,0.1]
[1763365972345,104.99,141.8,141.79,0.1]
[1763365972845,104.3,141.8,141.79,0.1]
[1763365973044,104.3,141.8,141.79,1.88614177]
[1763365974655,104.3,141.8,141.79,0.1]
[1763365974966,0.69,141.81,141.79,1.88614177]
[1763365975169,2.47614177,141.8,141.79,0.1]
[1763365975348,19.40953654,141.8,141.79,0.1]
[1763365975662,22.6512,141.74,141.73,0.1]
[1763365975874,24.43734177,141.74,141.73,0.1]
[1763365976038,25.12734177,141.74,141.73,0.1]
[1763365976239,34.91616946,141.74,141.73,0.1]
[1763365976440,25.12734177,141.74,141.73,0.1]
[1763365976955,34.91616946,141.74,141.73,0.1]
[1763365977370,33.13002769,141.74,141.73,0.1]
[1763365977662,34.91616946,141.74,141.73,0.1]
[1763365978263,33.13002769,141.74,141.73,0.1]
[1763365978466,23.3412,141.74,141.73,0.1]
[1763365978646,0.69,141.77,141.73,1.88614177]
[1763365978846,0.69,141.78,141.73,0.76]
[1763365979059,0.69,141.78,141.74,1.78614177]
[1763365979769,11.57496946,141.77,141.73,0.1]
[1763365979968,1.78614177,141.76,141.73,0.1]
[1763365980271,0.69,141.78,141.73,2.54614177]
[1763365980443,10.47882769,141.77,141.73,2.54614177]
[1763365980965,9.78882769,141.78,141.74,1.78614177]
[1763365981146,0.7,141.77,141.74,1.78614177]
[1763365981964,0.7,141.77,141.73,1.88614177]
[1763365982150,0.7,141.77,141.73,2.56614177]
[1763365982355,2.48614177,141.77,141.73,0.1]
[1763365982654,0.7,141.77,141.73,2.56614177]
[1763365983055,0.7,141.77,141.73,1.88614177]
[1763365983257,0.7,141.77,141.74,1.78614177]
[1763365983448,9.78882769,141.79,141.75,1.78614177]
[1763365983650,23.3512,141.79,141.75,1.78614177]
[1763365983849,104.3,141.78,141.75,1.78614177]
[1763365984169,104.3,141.78,141.75,2.46614177]
[1763365984347,104.3,141.78,141.75,1.78614177]
[1763365984541,105.0,141.78,141.75,1.78614177]
[1763365984944,106.78614177,141.78,141.74,1.78614177]
[1763365985262,105.0,141.78,141.74,1.78614177]
[1763365985459,104.3,141.78,141.74,0.68]
[1763365985656,105.0,141.78,141.74,2.46614177]
[1763365986969,105.0,141.78,141.75,1.78614177]
[1763365987170,105.0,141.78,141.74,2.46614177]
[1763365987358,0.7,141.77,141.74,1.78614177]
[1763365987674,115.87496946,141.76,141.73,0.1]
[1763365987870,0.7,141.75,141.73,0.1]
[1763365988369,114.78882769,141.76,141.73,0.1]
[1763365988558,0.7,141.75,141.73,0.1]
[1763365989867,114.08882769,141.76,141.73,0.1]
[1763365990062,114.78882769,141.76,141.73,0.1]
[1763365990268,2.48614177,141.75,141.73,0.1]
[1763365990472,1.78614177,141.74,141.73,0.1]
[1763365990666,2.48614177,141.74,141.73,0.1]
[1763365990981,1.78614177,141.74,141.73,0.1]
[1763365991163,0.7,141.74,141.73,0.1]
[1763365991352,2.48614177,141.74,141.73,0.1]
[1763365992168,9.78882769,141.76,141.73,0.1]
[1763365992363,10.48882769,141.76,141.73,0.1]
[1763365992768,9.78882769,141.76,141.73,2.56614177]
[1763365993181,12.27496946,141.78,141.73,0.78]
[1763365993364,9.78882769,141.76,141.73,2.56614177]
[1763365995097,10.48882769,141.76,141.73,2.56614177]
[1763365995756,25.13734177,141.78,141.74,2.46614177]
[1763365996067,9.78882769,141.77,141.74,2.46614177]
[1763365996271,25.13734177,141.78,141.73,0.1]
[1763365996272,9.78882769,141.78,141.75,2.46614177]
[1763365996677,10.48882769,141.78,141.75,0.68]
[1763365996858,9.78882769,141.78,141.75,0.68]
[1763365997054,9.78882769,141.78,141.75,2.46614177]
[1763365997283,104.3,141.77,141.75,0.68]
[1763365997483,104.3,141.77,141.74,1.78614177]
[1763365997683,104.3,141.77,141.74,2.49614177]
[1763365998257,104.3,141.77,141.74,0.71]
[1763365998589,104.3,141.77,141.74,2.49614177]
[1763365999487,104.3,141.77,141.76,1.78614177]
[1763365999666,104.3,141.83,141.76,1.78614177]
[1763365999871,3.68729254,141.84,141.81,1.78614177]
[1763366000081,1.78614177,141.86,141.81,1.78614177]
[1763366000400,0.68,141.86,141.82,2.49614177]
[1763366000598,24.43734177,141.87,141.83,1.78614177]
[1763366000599,1.78614177,141.87,141.83,1.78614177]
[1763366000764,1.78614177,141.88,141.83,2.49614177]
[1763366000964,2.46614177,141.88,141.84,0.71]
[1763366001392,6.51120147,141.88,141.84,0.71]
[1763366001598,0.68,141.87,141.84,0.71]
[1763366001798,10.46882769,141.87,141.84,0.71]
[1763366001979,9.78882769,141.87,141.76,22.6512]
[1763366002165,1.78614177,141.85,141.78,29.79576708]
[1763366002367,1.78614177,141.85,141.81,1.78614177]
[1763366002568,2.46614177,141.84,141.8,1.78614177]
[1763366002804,1.78614177,141.82,141.78,1.78614177]
[1763366002979,1.78614177,141.82,141.79,0.71]
[1763366003174,2.46614177,141.83,141.79,2.49614177]
[1763366003769,11.57496946,141.84,141.8,2.49614177]
[1763366003994,12.25496946,141.84,141.8,1.78614177]
[1763366004191,12.25496946,141.84,141.79,1.78614177]
[1763366004192,2.46614177,141.83,141.79,1.78614177]
[1763366004489,2.46614177,141.83,141.78,2.49614177]
[1763366004704,0.68,141.82,141.78,2.49614177]
[1763366004995,0.68,141.82,141.79,0.71]
[1763366005292,2.46614177,141.82,141.77,1.78614177]
[1763366005496,2.46614177,141.82,141.77,2.49614177]
[1763366005795,1.78614177,141.83,141.79,1.78614177]
[1763366006186,2.46614177,141.83,141.79,2.49614177]
[1763366006495,1.78614177,141.85,141.8,2.49614177]
[1763366006678,104.3,141.84,141.81,2.49614177]
[1763366007186,104.3,141.84,141.83,1.78614177]
[1763366007392,104.3,141.84,141.82,2.49614177]
[1763366007772,104.3,141.84,141.83,0.71]
[1763366007970,104.3,141.84,141.82,1.78614177]
[1763366008166,104.3,141.84,141.78,7.14456708]
[1763366008167,104.3,141.84,141.8,0.71]
[1763366008371,104.3,141.84,141.81,1.78614177]
[1763366008572,104.3,141.84,141.82,0.71]
[1763366009474,104.3,141.84,141.81,1.78614177]
[1763366009673,104.3,141.84,141.81,2.49614177]
[1763366010409,104.3,141.84,141.82,1.78614177]
[1763366010712,104.3,141.84,141.83,1.78614177]
[1763366010895,104.3,141.84,141.83,2.48614177]
[1763366016692,104.3,141.84,141.83,0.7]
[1763366017008,104.3,141.84,141.83,2.48614177]
[1763366017785,104.3,141.84,141.83,0.7]
[1763366018104,104.3,141.84,141.83,2.48614177]
[1763366022126,129.44734177,141.89,141.83,2.48614177]
[1763366022414,128.73734177,141.89,141.84,2.48614177]
[1763366022584,0.71,141.88,141.84,2.48614177]
[1763366023292,2.49614177,141.88,141.84,1.78614177]
[1763366023621,2.49614177,141.88,141.84,2.48614177]
[1763366023816,0.71,141.87,141.84,2.48614177]
[1763366023979,126.9512,141.89,141.85,2.48614177]
[1763366024187,104.3,141.89,141.86,1.78614177]
[1763366024427,10.49882769,141.9,141.86,2.48614177]
[1763366025683,0.71,141.9,141.86,1.78614177]
[1763366025890,104.3,141.89,141.88,1.78614177]
[1763366026211,104.3,141.89,141.88,2.48614177]
[1763366026583,104.3,141.89,141.88,1.78614177]
[1763366027811,104.3,141.89,141.87,1.78614177]
[1763366028384,104.3,141.89,141.87,2.48614177]
[1763366028592,104.3,141.89,141.86,1.78614177]
[1763366028794,104.3,141.89,141.86,3.48941929]
[1763366029292,104.3,141.89,141.87,2.78941929]
[1763366029494,104.3,141.89,141.87,3.48941929]
[1763366029683,104.3,141.89,141.86,3.48941929]
[1763366030288,104.3,141.89,141.87,2.78941929]
[1763366030997,104.3,141.89,141.86,3.48941929]
[1763366031199,104.3,141.89,141.87,2.78941929]
[1763366032019,105.01,141.89,141.86,0.7]
[1763366032405,104.3,141.89,141.86,0.7]
[1763366033613,104.3,141.89,141.86,3.48941929]
[1763366033922,104.3,141.89,141.87,2.78941929]
[1763366034092,104.3,141.89,141.87,3.48941929]
[1763366034291,104.3,141.89,141.87,0.7]
[1763366034729,104.3,141.89,141.86,2.78941929]
[1763366034928,104.3,141.89,141.86,3.48941929]
[1763366035717,104.3,141.89,141.87,3.48941929]
[1763366036092,104.3,141.89,141.87,2.78941929]
[1763366036300,104.3,141.89,141.88,2.78941929]
[1763366036714,104.3,141.89,141.87,2.78941929]
[1763366037114,105.01,141.89,141.86,2.78941929]
[1763366037416,105.01,141.89,141.87,2.78941929]
[1763366039417,104.3,141.89,141.87,2.78941929]
[1763366039620,104.3,141.89,141.88,2.78941929]
[1763366041843,104.3,141.88,141.81,0.69]
[1763366042010,104.3,141.88,141.82,2.78941929]
[1763366042011,2.78941929,141.87,141.82,2.78941929]
[1763366042322,0.68,141.86,141.82,2.78941929]
[1763366042831,0.68,141.86,141.83,2.78941929]
[1763366044024,0.68,141.86,141.84,2.78941929]
[1763366044707,104.3,141.88,141.85,3.47941929]
[1763366044912,104.3,141.88,141.86,2.78941929]
[1763366045920,104.98,141.88,141.86,2.78941929]
[1763366046333,104.98,141.88,141.85,2.78941929]
[1763366046696,104.98,141.88,141.86,2.78941929]
[1763366048330,104.3,141.87,141.86,2.78941929]
[1763366048929,104.3,141.87,141.85,2.78941929]
[1763366050434,0.68,141.86,141.84,2.78941929]
[1763366050724,104.3,141.87,141.85,2.78941929]
[1763366051625,104.3,141.87,141.86,2.78941929]
[1763366054333,104.3,141.87,141.85,2.78941929]
[1763366054828,104.3,141.87,141.84,0.69]
[1763366055141,104.98,141.87,141.85,2.78941929]
[1763366055726,104.3,141.87,141.85,2.78941929]
[1763366055928,104.3,141.87,141.86,3.47941929]
[1763366056329,104.3,141.87,141.86,2.78941929]
[1763366056509,104.3,141.87,141.85,0.69]
[1763366056709,104.3,141.87,141.85,3.47941929]
[1763366056911,104.3,141.87,141.85,2.78941929]
[1763366057532,104.3,141.87,141.85,3.46941929]
[1763366058323,104.3,141.87,141.86,3.46941929]
[1763366058512,104.3,141.87,141.86,2.78941929]
[1763366059208,104.97,141.87,141.85,2.78941929]
[1763366060427,104.3,141.87,141.85,2.78941929]
[1763366060611,104.97,141.87,141.85,2.78941929]
[1763366062438,0.67,141.86,141.83,2.78941929]
[1763366062649,0.67,141.86,141.82,2.78941929]
[1763366062954,0.67,141.86,141.83,2.78941929]
[1763366063138,0.67,141.86,141.84,2.78941929]
[1763366063713,104.97,141.87,141.85,2.78941929]
[1763366064338,0.67,141.86,141.84,2.78941929]
[1763366065840,104.3,141.85,141.84,2.78941929]
[1763366066841,104.3,141.85,141.82,0.68]
[1763366067035,104.3,141.85,141.84,2.78941929]
[1763366067717,104.3,141.85,141.84,6.25883858]
[1763366067942,104.3,141.85,141.84,3.46941929]
[1763366068117,104.3,141.85,141.84,6.25883858]
[1763366068332,127.6212,141.9,141.84,6.25883858]
[1763366068637,104.3,141.89,141.88,2.78941929]
[1763366070953,105.0,141.89,141.87,2.78941929]
[1763366071137,104.3,141.89,141.87,2.78941929]
[1763366072261,0.7,141.88,141.85,2.78941929]
[1763366072450,104.3,141.87,141.85,2.78941929]
[1763366073248,104.3,141.87,141.85,3.48941929]
[1763366073850,104.3,141.87,141.85,2.78941929]
[1763366074941,104.3,141.87,141.85,3.48941929]
[1763366075237,104.3,141.87,141.86,2.78941929]
[1763366078061,104.3,141.87,141.86,3.48941929]
[1763366078965,104.3,141.87,141.86,2.78941929]
[1763366080662,104.3,141.87,141.85,2.78941929]
[1763366080970,104.3,141.87,141.86,2.78941929]
[1763366081884,104.3,141.87,141.86,3.48941929]
[1763366082091,104.3,141.87,141.86,0.7]
[1763366082247,104.3,141.87,141.86,3.48941929]
[1763366082966,104.3,141.87,141.86,2.78941929]
[1763366084771,104.3,141.87,141.86,3.48941929]
[1763366085072,104.3,141.87,141.86,2.78941929]
[1763366085767,104.3,141.87,141.85,0.7]
[1763366085951,105.0,141.87,141.85,2.78941929]
[1763366086150,105.0,141.87,141.83,23.3512]
[1763366086345,105.0,141.86,141.81,0.7]
[1763366086656,104.3,141.85,141.82,2.78941929]
[1763366086859,105.0,141.85,141.82,2.78941929]
[1763366087349,105.0,141.85,141.82,3.48941929]
[1763366088162,105.0,141.85,141.83,2.78941929]
[1763366088568,105.0,141.85,141.82,2.78941929]
[1763366088769,105.0,141.85,141.83,1.78593918]
[1763366088984,105.0,141.85,141.82,1.78593918]
[1763366090766,105.0,141.85,141.83,1.78593918]
[1763366091155,105.0,141.84,141.79,0.7]
[1763366091468,105.0,141.84,141.82,1.78593918]
[1763366092078,104.3,141.84,141.82,1.78593918]
[1763366093280,104.3,141.84,141.82,2.48593918]
[1763366093882,104.3,141.84,141.82,1.78593918]
[1763366094663,105.0,141.84,141.82,1.78593918]
[1763366095197,104.3,141.83,141.82,1.78593918]
[1763366101390,104.3,141.83,141.82,2.49593918]
[1763366103396,104.3,141.83,141.82,1.78593918]
[1763366104581,104.3,141.83,141.82,2.49593918]
[1763366105897,104.3,141.83,141.82,1.78593918]
[1763366106200,104.3,141.83,141.82,2.49593918]
[1763366115315,104.3,141.83,141.82,1.78593918]
[1763366115804,104.3,141.83,141.82,2.49593918]
[1763366118316,104.3,141.83,141.81,0.69]
[1763366118496,104.3,141.83,141.82,2.47593918]
[1763366119012,104.3,141.83,141.82,1.78593918]
[1763366119684,104.3,141.83,141.81,0.69]
[1763366120306,104.3,141.83,141.81,2.47593918]
[1763366122917,104.3,141.83,141.81,1.78593918]
[1763366123087,104.3,141.83,141.82,0.69]
[1763366124622,104.3,141.83,141.81,2.47593918]
[1763366127030,104.3,141.83,141.81,0.69]
[1763366127201,104.3,141.83,141.81,2.47593918]
[1763366130224,104.98,141.83,141.81,0.69]
[1763366130528,0.72,141.82,141.78,1.78593918]
[1763366130690,2.50593918,141.82,141.77,2.50593918]
[1763366130897,1.78593918,141.81,141.76,1.78593918]
[1763366131091,1.78593918,141.79,141.74,0.72]
[1763366131290,1.78593918,141.79,141.74,2.50593918]
[1763366131496,2.50593918,141.78,141.73,1.88593918]
[1763366131712,2.50593918,141.78,141.73,2.60593918]
[1763366131911,0.72,141.77,141.73,2.60593918]
[1763366132311,0.72,141.77,141.73,1.88593918]
[1763366132518,1.78593918,141.79,141.74,2.50593918]
[1763366132740,0.72,141.77,141.74,2.50593918]
[1763366134037,0.72,141.77,141.74,0.72]
[1763366134205,0.72,141.79,141.75,1.78593918]
[1763366134401,1.78593918,141.8,141.76,1.78593918]
[1763366134924,22.6512,141.82,141.75,0.72]
[1763366134925,2.50593918,141.79,141.75,0.72]
[1763366135253,0.72,141.79,141.75,2.50593918]
[1763366135608,0.72,141.79,141.76,1.78593918]
[1763366135805,0.72,141.81,141.77,1.78593918]
[1763366136021,25.15713918,141.82,141.78,2.50593918]
[1763366136428,22.6512,141.82,141.78,2.50593918]
[1763366136656,0.72,141.81,141.78,2.50593918]
[1763366136948,0.72,141.81,141.77,1.78593918]
[1763366137324,0.72,141.81,141.77,2.50593918]
[1763366137524,0.72,141.81,141.78,2.50593918]
[1763366138239,0.72,141.81,141.78,0.72]
[1763366138821,0.72,141.81,141.78,2.50593918]
[1763366139633,0.72,141.81,141.77,2.50593918]
[1763366139833,0.72,141.81,141.77,1.78593918]
[1763366140235,2.50593918,141.81,141.76,2.50593918]
[1763366140750,0.72,141.8,141.76,1.78593918]
[1763366140929,0.72,141.8,141.76,2.50593918]
[1763366142067,0.72,141.8,141.77,1.78593918]
[1763366142248,104.3,141.79,141.78,1.78593918]
[1763366142446,104.3,141.79,141.78,2.50593918]
[1763366143743,104.3,141.79,141.77,1.78593918]
[1763366144150,104.3,141.79,141.77,2.50593918]
[1763366145064,104.3,141.79,141.75,22.6512]
[1763366145274,0.72,141.78,141.76,1.78593918]
[1763366145757,105.02,141.79,141.75,2.50593918]
[1763366145937,104.3,141.79,141.76,0.72]
[1763366146137,104.3,141.79,141.77,1.78593918]
[1763366146858,104.3,141.79,141.76,2.50593918]
[1763366148066,105.02,141.79,141.76,2.50593918]
[1763366149256,104.3,141.79,141.76,1.78593918]
[1763366149460,104.3,141.79,141.76,2.50593918]
[1763366150256,105.02,141.79,141.76,2.50593918]
[1763366150561,105.02,141.79,141.77,1.78593918]
[1763366150755,104.3,141.79,141.76,0.72]
[1763366151059,104.3,141.79,141.77,2.79271891]
[1763366153055,105.02,141.79,141.77,2.79271891]
[1763366153248,104.3,141.79,141.78,3.51271891]
[1763366158853,104.3,141.79,141.78,2.79271891]
[1763366159374,105.02,141.79,141.76,23.3712]
[1763366159675,105.02,141.79,141.78,2.79271891]
[1763366160374,104.3,141.79,141.78,2.79271891]
[1763366160881,104.3,141.79,141.78,3.48271891]
[1763366161180,104.3,141.79,141.78,2.79271891]
[1763366164582,104.3,141.79,141.78,3.48271891]
[1763366164754,104.3,141.79,141.78,2.79271891]
[1763366170896,104.3,141.79,141.78,3.48271891]
[1763366171065,104.3,141.79,141.78,2.79271891]
[1763366172570,104.97,141.79,141.76,23.3412]
[1763366172891,104.3,141.79,141.78,2.79271891]
[1763366174369,104.97,141.79,141.74,21.20515992]
[1763366174569,0.67,141.78,141.74,2.79271891]
[1763366174761,3.46271891,141.78,141.74,2.79271891]
[1763366174968,104.3,141.77,141.73,2.89271891]
[1763366175183,104.97,141.77,141.73,2.89271891]
[1763366175365,0.67,141.76,141.73,2.89271891]
[1763366175996,0.67,141.76,141.74,2.79271891]
[1763366176373,0.67,141.76,141.73,2.89271891]
[1763366177079,0.67,141.76,141.74,2.79271891]
[1763366178289,0.67,141.76,141.73,2.89271891]
[1763366178591,3.46271891,141.76,141.73,0.1]
[1763366179082,0.71,141.75,141.73,0.1]
[1763366180974,0.71,141.75,141.73,2.89271891]
[1763366181476,0.71,141.75,141.73,0.1]
[1763366182898,104.3,141.74,141.73,0.1]
[1763366183198,0.71,141.75,141.73,0.1]
[1763366183402,0.71,141.74,141.73,0.1]
[1763366184797,3.58271891,141.76,141.73,0.1]
[1763366185005,0.71,141.75,141.73,0.1]
[1763366186416,0.71,141.75,141.73,2.89271891]
[1763366188610,3.58271891,141.77,141.73,2.89271891]
[1763366188789,0.71,141.75,141.73,2.89271891]
[1763366193411,0.71,141.75,141.73,0.1]
[1763366197605,3.50271891,141.75,141.73,0.1]
[1763366198012,0.72,141.74,141.73,0.1]
[1763366200907,0.72,141.77,141.73,3.56271891]
[1763366201209,0.72,141.77,141.74,3.46271891]
[1763366201505,2.79271891,141.76,141.73,0.1]
[1763366201804,2.79271891,141.76,141.73,0.77]
[1763366202104,3.51271891,141.76,141.73,0.77]
[1763366202793,3.51271891,141.76,141.73,0.1]
[1763366203089,3.51271891,141.76,141.73,0.77]
[1763366203797,0.72,141.76,141.73,0.77]
[1763366204514,3.51271891,141.76,141.73,0.77]
[1763366206115,3.51271891,141.75,141.73,0.1]
[1763366206310,0.72,141.75,141.73,0.1]
[1763366206613,9.78882769,141.77,141.73,0.1]
[1763366206614,3.51271891,141.77,141.73,3.56271891]
[1763366207009,3.51271891,141.77,141.74,0.67]
[1763366207718,0.72,141.77,141.74,0.67]
[1763366208015,32.44002769,141.74,141.73,0.1]
[1763366208187,39.97765978,141.74,141.73,0.1]
[1763366208386,0.71,141.73,141.71,0.1]
[1763366208590,0.71,141.73,141.7,0.1]
[1763366208591,2.79271891,141.71,141.7,0.1]
[1763366208905,39.97765978,141.71,141.7,0.1]
[1763366209098,43.41801534,141.71,141.7,0.1]
[1763366210892,42.41629588,141.71,141.7,0.1]
[1763366211329,35.88038325,141.71,141.7,0.1]
[1763366211495,37.6713827,141.71,141.7,0.1]
[1763366213029,35.27038325,141.71,141.7,0.1]
[1763366213209,32.44002769,141.71,141.7,0.1]
[1763366213404,1.79099945,141.73,141.7,0.77]
[1763366213607,12.61858256,141.72,141.7,0.1]
[1763366213825,9.78882769,141.72,141.7,0.1]
[1763366214220,12.18982714,141.71,141.7,0.1]
[1763366216731,11.57982714,141.72,141.7,0.1]
[1763366217121,14.40958201,141.72,141.7,0.1]
[1763366218120,1.79099945,141.73,141.7,0.1]
[1763366218324,25.48055455,141.74,141.71,0.67]
[1763366218633,22.6512,141.74,141.71,0.67]
[1763366219015,24.44219945,141.74,141.71,0.67]
[1763366219220,9.78882769,141.73,141.71,0.67]
[1763366219717,2.40099945,141.72,141.7,0.1]
[1763366220232,1.79099945,141.71,141.7,0.1]
[1763366220641,2.40099945,141.71,141.7,0.1]
[1763366220859,1.79099945,141.71,141.7,0.1]
[1763366221053,9.78882769,141.71,141.7,0.1]
[1763366221624,9.78882769,141.71,141.7,0.81]
[1763366221841,9.78882769,141.71,141.7,0.1]
[1763366222043,4.62075432,141.73,141.7,0.81]
[1763366222250,11.57982714,141.73,141.7,0.81]
[1763366222634,9.78882769,141.73,141.7,0.81]
[1763366223847,128.74219945,141.74,141.7,0.81]
[1763366224055,126.9512,141.74,141.7,2.60099945]
[1763366224260,104.3,141.74,141.7,2.60099945]
[1763366224549,104.3,141.74,141.71,2.50099945]
[1763366225031,104.3,141.74,141.72,0.71]
[1763366226539,106.70099945,141.74,141.7,0.81]
[1763366226742,106.70099945,141.74,141.71,0.71]
[1763366227131,106.09099945,141.74,141.71,0.71]
[1763366229742,104.3,141.74,141.71,0.71]
[1763366230432,106.09099945,141.74,141.71,0.71]
[1763366232459,1.79099945,141.72,141.7,0.1]
[1763366232666,1.79099945,141.71,141.7,0.1]
[1763366232874,11.57982714,141.72,141.7,0.1]
[1763366233171,12.18982714,141.72,141.7,0.1]
[1763366233375,12.18982714,141.71,141.7,0.1]
[1763366234785,16.93825724,141.71,141.7,0.1]
[1763366235353,12.18982714,141.71,141.7,0.1]
[1763366235851,11.57982714,141.71,141.7,0.1]